[Event "Wuerttemberg Rapid Teams 2024"]
[Site "B?blingen, Germany"]
[Date "2024.04.13"]
[Round "1.2"]
[White "Deuer, Marius"]
[Black "Foksha, Alexander"]
[Result "1-0"]
[ECO "E01"]
[WhiteElo "2439"]
[BlackElo "1924"]
[Annotator "RC"]
[PlyCount "73"]
[EventDate "2024.04.13"]
[EventType "team-tourn"]
[SourceTitle "playchess.com"]
[Source "ChessBase"]
[SourceQuality "1"]
[TimeControl "900+5"]

1. d4 {[%emt 0:00:02]} d5 {[%emt 0:00:07]} 2. c4 {[%emt 0:00:03]} c6 {[%emt 0:00:10]} 3. Nf3 {[%emt 0:00:10]} Nf6 {[%emt 0:00:09]} 4. Qc2 {[%emt 0:00:15]} e6 {[%emt 0:00:14]} 5. g3 {[%emt 0:00:06]} Bd6 {[%emt 0:00:15]} 6. Bg2 {[%emt 0:00:04]} Nbd7 {[%emt 0:00:21]} 7. O-O {[%emt 0:00:08]} O-O {[%emt 0:00:04]} 8. Nbd2 {[%emt 0:00:10]} b6 {[%emt 0:01:50]} 9. e4 {[%emt 0:00:04]} dxe4 {[%emt 0:00:02]} 10. Nxe4 {[%emt 0:00:02]} Nxe4 {[%emt 0:00:12]} 11. Qxe4 {[%emt 0:00:02]} Bb7 {[%emt 0:00:04]} 12. Ne5 {[%emt 0:01:47]} Nxe5 {[%emt 0:01:48]} 13. dxe5 {[%emt 0:00:02]} Be7 {[%emt 0:00:01]} 14. Be3 {[%emt 0:03:07]} Qc7 {[%emt 0:00:27]} 15. Rac1 {[%emt 0:00:28]} Rad8 {[%emt 0:01:42]} 16. h4 {[%emt 0:01:03]} Rd7 {[%emt 0:00:44]} 17. c5 {[%emt 0:00:21]} bxc5 {[%emt 0:01:07]} 18. Bxc5 {[%emt 0:00:02]} Bxc5 {[%emt 0:00:01]} 19. Rxc5 {[%emt 0:00:02]} Rd5 {[%emt 0:00:01]} 20. Rfc1 {[%emt 0:01:45]} Rfd8 {[%emt 0:00:02]} 21. Qe3 {[%emt 0:00:41]} Rd3 {[%emt 0:01:47]} 22. Qe1 {[%emt 0:00:21]} Qb6 {[%emt 0:00:10]} 23. b3 {[%emt 0:01:21]} Rd2 {[%emt 0:00:34]} 24. Bxc6 {[%emt 0:00:47]} Bxc6 {[%emt 0:02:14]} 25. Rxc6 {[%emt 0:00:01]} Qb8 {[%emt 0:00:40]} 26. Qxd2 {[%emt 0:00:39]} Rxd2 {[%emt 0:00:01]} 27. Rc8+ {[%emt 0:00:01]} Rd8 {[%emt 0:00:01]} 28. Rxb8 {[%emt 0:00:01]} Rxb8 {[%emt 0:00:00]} 29. Rc7 {[%emt 0:00:03]} Ra8 {[%emt 0:00:01]} 30. b4 {[%emt 0:00:31]} g6 {[%emt 0:00:12]} 31. b5 {[%emt 0:00:04]} Kg7 {[%emt 0:00:17]} 32. a4 {[%emt 0:00:02]} h5 {[%emt 0:00:03]} 33. Kg2 {[%emt 0:00:20]} Kf8 {[%emt 0:00:03]} 34. Kf3 {[%emt 0:00:02]} Ke8 {[%emt 0:00:19]} 35. Kf4 {[%emt 0:00:48]} a6 {[%emt 0:00:05]} 36. b6 {[%emt 0:00:06]} Rb8 {[%emt 0:00:05]} 37. b7 {[%emt 0:00:10]} 1-0

[Event "Wuerttemberg Rapid Teams 2024"]
[Site "B?blingen, Germany"]
[Date "2024.04.13"]
[Round "1.3"]
[White "Hadziselimovic, Adnan"]
[Black "Kocharin, Timur"]
[Result "0-1"]
[ECO "A34"]
[WhiteElo "2053"]
[BlackElo "2250"]
[Annotator "RC"]
[PlyCount "86"]
[EventDate "2024.04.13"]
[EventType "team-tourn"]
[SourceTitle "playchess.com"]
[Source "ChessBase"]
[SourceQuality "1"]
[TimeControl "900+5"]

1. c4 {[%emt 0:00:02]} c5 {[%emt 0:00:03]} 2. g3 {[%emt 0:00:03]} Nf6 {[%emt 0:00:13]} 3. Bg2 {[%emt 0:00:05]} d5 {[%emt 0:00:03]} 4. cxd5 {[%emt 0:00:35]} Nxd5 {[%emt 0:00:03]} 5. Nc3 {[%emt 0:00:04]} Nc7 {[%emt 0:00:07]} 6. Nf3 {[%emt 0:00:22]} Nc6 {[%emt 0:00:03]} 7. O-O {[%emt 0:00:11]} e5 {[%emt 0:00:32]} 8. d3 {[%emt 0:00:24]} Be7 {[%emt 0:00:08]} 9. Be3 {[%emt 0:00:28]} O-O {[%emt 0:00:39]} 10. Rc1 {[%emt 0:00:13]} Ne6 {[%emt 0:01:47]} 11. Qc2 {[%emt 0:01:18]} Bd7 {[%emt 0:00:52]} 12. Ne4 {[%emt 0:00:58]} b6 {[%emt 0:00:19]} 13. Ned2 {[%emt 0:00:59]} Rc8 {[%emt 0:00:26]} 14. Nc4 {[%emt 0:00:08]} f6 {[%emt 0:00:17]} 15. Rfd1 {[%emt 0:01:07]} Kh8 {[%emt 0:00:51]} 16. Kf1 {[%emt 0:01:25]} Ned4 {[%emt 0:00:42]} 17. Bxd4 {[%emt 0:00:05]} exd4 {[%emt 0:00:07]} 18. Nfd2 {[%emt 0:00:57]} Be6 {[%emt 0:00:20]} 19. Re1 {[%emt 0:01:10]} b5 {[%emt 0:00:15]} 20. Na3 {[%emt 0:00:08]} Nb4 {[%emt 0:00:04]} 21. Qd1 {[%emt 0:00:21]} Qd7 {[%emt 0:01:00]} 22. Ne4 {[%emt 0:01:52]} f5 {[%emt 0:00:04]} 23. Nd2 {[%emt 0:00:32]} Nxa2 {[%emt 0:00:06]} 24. Ra1 {[%emt 0:00:38]} Nb4 {[%emt 0:00:10]} 25. Nc2 {[%emt 0:00:20]} Nd5 {[%emt 0:00:08]} 26. Nf3 {[%emt 0:00:08]} Bf6 {[%emt 0:00:09]} 27. Qc1 {[%emt 0:00:30]} Nb6 {[%emt 0:00:40]} 28. e3 {[%emt 0:00:55]} dxe3 {[%emt 0:00:30]} 29. Qxe3 {[%emt 0:00:09]} Bb3 {[%emt 0:00:10]} 30. Na3 {[%emt 0:00:17]} Bxb2 {[%emt 0:00:03]} 31. Rab1 {[%emt 0:00:09]} Bxa3 {[%emt 0:00:20]} 32. Rxb3 {[%emt 0:00:02]} Rce8 {[%emt 0:00:07]} 33. Qd2 {[%emt 0:00:10]} Bb4 {[%emt 0:00:02]} 34. Rxb4 {[%emt 0:00:06]} cxb4 {[%emt 0:00:02]} 35. Qxb4 {[%emt 0:00:02]} Qxd3+ {[%emt 0:00:05]} 36. Kg1 {[%emt 0:00:05]} Qc4 {[%emt 0:00:07]} 37. Qd6 {[%emt 0:00:16]} Rxe1+ {[%emt 0:00:16]} 38. Nxe1 {[%emt 0:00:01]} Re8 {[%emt 0:00:05]} 39. Bf1 {[%emt 0:00:15]} Qe6 {[%emt 0:00:09]} 40. Qxe6 {[%emt 0:00:02]} Rxe6 {[%emt 0:00:02]} 41. Nd3 {[%emt 0:00:06]} a5 {[%emt 0:00:09]} 42. Nf4 {[%emt 0:00:03]} Re1 {[%emt 0:00:02]} 43. Kg2 {[%emt 0:00:01]} b4 {[%emt 0:00:04]} 0-1

[Event "Wuerttemberg Rapid Teams 2024"]
[Site "B?blingen, Germany"]
[Date "2024.04.13"]
[Round "1.4"]
[White "Junesch, Gerhard"]
[Black "Valchev, Martin V"]
[Result "1-0"]
[ECO "E94"]
[WhiteElo "2267"]
[BlackElo "1529"]
[Annotator "RC"]
[PlyCount "57"]
[EventDate "2024.04.13"]
[EventType "team-tourn"]
[SourceTitle "playchess.com"]
[Source "ChessBase"]
[SourceQuality "1"]
[TimeControl "900+5"]

1. d4 {[%emt 0:00:03]} Nf6 {[%emt 0:00:03]} 2. c4 {[%emt 0:00:01]} g6 {[%emt 0:00:01]} 3. Nc3 {[%emt 0:00:03]} Bg7 {[%emt 0:00:02]} 4. e4 {[%emt 0:00:01]} d6 {[%emt 0:00:01]} 5. Nf3 {[%emt 0:00:03]} O-O {[%emt 0:00:13]} 6. Be2 {[%emt 0:00:02]} e5 {[%emt 0:00:17]} 7. Be3 {[%emt 0:00:04]} Nbd7 {[%emt 0:00:39]} 8. O-O {[%emt 0:00:04]} Re8 {[%emt 0:00:23]} 9. d5 {[%emt 0:00:17]} b6 {[%emt 0:00:32]} 10. Nd2 {[%emt 0:00:05]} a5 {[%emt 0:00:10]} 11. a3 {[%emt 0:00:09]} Bb7 {[%emt 0:00:28]} 12. b4 {[%emt 0:00:04]} axb4 {[%emt 0:01:18]} 13. axb4 {[%emt 0:00:01]} Re7 {[%emt 0:00:21]} 14. Qc2 {[%emt 0:00:08]} h6 {[%emt 0:00:36]} 15. Nb3 {[%emt 0:00:04]} c6 {[%emt 0:00:51]} 16. Rxa8 {[%emt 0:00:54]} Qxa8 {[%emt 0:00:22]} 17. Ra1 {[%emt 0:00:15]} Qb8 {[%emt 0:00:04]} 18. Qa2 {[%emt 0:01:23]} Ne8 {[%emt 0:03:31]} 19. Qa7 {[%emt 0:00:37]} c5 {[%emt 0:01:38]} 20. Qxb8 {[%emt 0:00:44]} Nxb8 {[%emt 0:00:04]} 21. Ra7 {[%emt 0:00:59]} Kf8 {[%emt 0:00:35]} 22. Na4 {[%emt 0:00:19]} cxb4 {[%emt 0:00:32]} 23. Nxb6 {[%emt 0:00:16]} f5 {[%emt 0:00:14]} 24. f3 {[%emt 0:00:10]} f4 {[%emt 0:00:12]} 25. Bf2 {[%emt 0:01:03]} g5 {[%emt 0:00:21]} 26. c5 {[%emt 0:00:26]} Rc7 {[%emt 0:01:40]} 27. Na5 {[%emt 0:00:43]} dxc5 {[%emt 0:00:55]} 28. Rxb7 {[%emt 0:00:14]} Rxb7 {[%emt 0:00:27]} 29. Nxb7 {[%emt 0:00:03]} 1-0

[Event "Wuerttemberg Rapid Teams 2024"]
[Site "B?blingen, Germany"]
[Date "2024.04.13"]
[Round "1.5"]
[White "Kabisch, Thilo"]
[Black "Seitz, Patrick"]
[Result "1-0"]
[ECO "C97"]
[WhiteElo "2228"]
[BlackElo "2125"]
[Annotator "RC"]
[PlyCount "87"]
[EventDate "2024.04.13"]
[EventType "team-tourn"]
[SourceTitle "playchess.com"]
[Source "ChessBase"]
[SourceQuality "1"]
[TimeControl "900+5"]

1. e4 {[%emt 0:00:04]} e5 {[%emt 0:00:03]} 2. Nf3 {[%emt 0:00:02]} Nc6 {[%emt 0:00:02]} 3. Bb5 {[%emt 0:00:01]} a6 {[%emt 0:00:01]} 4. Ba4 {[%emt 0:00:01]} Nf6 {[%emt 0:00:02]} 5. O-O {[%emt 0:00:03]} Be7 {[%emt 0:00:05]} 6. Re1 {[%emt 0:00:02]} b5 {[%emt 0:00:02]} 7. Bb3 {[%emt 0:00:02]} O-O {[%emt 0:00:02]} 8. h3 {[%emt 0:00:02]} d6 {[%emt 0:01:09]} 9. c3 {[%emt 0:00:03]} Na5 {[%emt 0:00:41]} 10. Bc2 {[%emt 0:00:02]} c5 {[%emt 0:00:03]} 11. d4 {[%emt 0:00:08]} Qc7 {[%emt 0:00:15]} 12. d5 {[%emt 0:00:04]} c4 {[%emt 0:00:11]} 13. Nbd2 {[%emt 0:00:10]} Nb7 {[%emt 0:00:16]} 14. Nf1 {[%emt 0:00:04]} Nc5 {[%emt 0:00:22]} 15. Ng3 {[%emt 0:00:04]} Bd7 {[%emt 0:00:50]} 16. Nh2 {[%emt 0:00:07]} a5 {[%emt 0:00:26]} 17. f4 {[%emt 0:00:03]} exf4 {[%emt 0:01:11]} 18. Bxf4 {[%emt 0:00:04]} Ne8 {[%emt 0:02:21]} 19. Nf3 {[%emt 0:00:14]} b4 {[%emt 0:01:28]} 20. Nd4 {[%emt 0:00:09]} g6 {[%emt 0:01:02]} 21. Bh6 {[%emt 0:02:39]} Ng7 {[%emt 0:00:20]} 22. Rf1 {[%emt 0:00:05]} f6 {[%emt 0:01:18]} 23. Qe2 {[%emt 0:00:08]} Nb7 {[%emt 0:00:53]} 24. Rf3 {[%emt 0:00:44]} Rf7 {[%emt 0:00:04]} 25. Raf1 {[%emt 0:00:06]} Re8 {[%emt 0:00:30]} 26. Qd2 {[%emt 0:01:20]} bxc3 {[%emt 0:00:23]} 27. Qxc3 {[%emt 0:00:26]} Qc5 {[%emt 0:00:16]} 28. Kh2 {[%emt 0:01:21]} Rb8 {[%emt 0:00:20]} 29. Be3 {[%emt 0:01:43]} Qc7 {[%emt 0:00:01]} 30. Nge2 {[%emt 0:01:00]} Nc5 {[%emt 0:00:48]} 31. Bc1 {[%emt 0:00:45]} Na6 {[%emt 0:00:19]} 32. Nf4 {[%emt 0:00:22]} Nb4 {[%emt 0:00:06]} 33. Bb1 {[%emt 0:00:03]} f5 {[%emt 0:00:54]} 34. Nfe6 {[%emt 0:00:57]} Bxe6 {[%emt 0:00:13]} 35. Nxe6 {[%emt 0:00:21]} Qb7 {[%emt 0:00:48]} 36. Nxg7 {[%emt 0:00:16]} Rxg7 {[%emt 0:00:01]} 37. exf5 {[%emt 0:00:03]} Nxd5 {[%emt 0:00:01]} 38. Qxc4 {[%emt 0:00:05]} Rc8 {[%emt 0:00:00]} 39. Qe4 {[%emt 0:00:46]} gxf5 {[%emt 0:00:09]} 40. Qe6+ {[%emt 0:00:02]} Kh8 {[%emt 0:00:01]} 41. Bxf5 {[%emt 0:00:02]} Rf8 {[%emt 0:00:12]} 42. Be4 {[%emt 0:00:05]} Rxf3 {[%emt 0:00:09]} 43. Rxf3 {[%emt 0:00:04]} Nc7 {[%emt 0:00:01]} 44. Qxe7 {[%emt 0:00:24]} 1-0

[Event "Wuerttemberg Rapid Teams 2024"]
[Site "B?blingen, Germany"]
[Date "2024.04.13"]
[Round "1.6"]
[White "Narr, Kevin"]
[Black "Trachtmann, Mark"]
[Result "1-0"]
[ECO "A05"]
[WhiteElo "1977"]
[BlackElo "2203"]
[Annotator "RC"]
[PlyCount "100"]
[EventDate "2024.04.13"]
[EventType "team-tourn"]
[SourceTitle "playchess.com"]
[Source "ChessBase"]
[SourceQuality "1"]
[TimeControl "900+5"]

1. Nf3 {[%emt 0:00:00]} Nf6 {[%emt 0:00:02]} 2. g3 {[%emt 0:00:01]} g6 {[%emt 0:00:04]} 3. b3 {[%emt 0:00:00]} Bg7 {[%emt 0:00:06]} 4. Bb2 {[%emt 0:00:01]} d5 {[%emt 0:00:15]} 5. Bg2 {[%emt 0:00:13]} c5 {[%emt 0:00:16]} 6. c4 {[%emt 0:00:01]} d4 {[%emt 0:00:13]} 7. b4 {[%emt 0:00:04]} O-O {[%emt 0:00:27]} 8. O-O {[%emt 0:00:03]} Nc6 {[%emt 0:01:39]} 9. bxc5 {[%emt 0:00:00]} e5 {[%emt 0:00:10]} 10. d3 {[%emt 0:00:05]} Re8 {[%emt 0:00:14]} 11. Nbd2 {[%emt 0:00:39]} Bf8 {[%emt 0:00:31]} 12. Nb3 {[%emt 0:00:34]} Nd7 {[%emt 0:00:13]} 13. Ba3 {[%emt 0:00:27]} a5 {[%emt 0:00:15]} 14. Rb1 {[%emt 0:00:43]} a4 {[%emt 0:00:04]} 15. Na1 {[%emt 0:00:58]} Nxc5 {[%emt 0:00:02]} 16. Nc2 {[%emt 0:00:13]} Qc7 {[%emt 0:01:01]} 17. Nb4 {[%emt 0:00:29]} Nxb4 {[%emt 0:00:05]} 18. Bxb4 {[%emt 0:00:01]} Bd7 {[%emt 0:00:50]} 19. Ng5 {[%emt 0:00:24]} Bc6 {[%emt 0:00:13]} 20. Bxc5 {[%emt 0:00:06]} Bxc5 {[%emt 0:00:04]} 21. Bxc6 {[%emt 0:00:44]} bxc6 {[%emt 0:00:02]} 22. Qc2 {[%emt 0:00:49]} f5 {[%emt 0:00:34]} 23. Rb2 {[%emt 0:00:25]} h6 {[%emt 0:00:30]} 24. Nf3 {[%emt 0:00:01]} e4 {[%emt 0:01:17]} 25. Nh4 {[%emt 0:00:08]} Qf7 {[%emt 0:00:19]} 26. Rfb1 {[%emt 0:00:25]} Ra7 {[%emt 0:00:01]} 27. Rb8 {[%emt 0:00:26]} Kh7 {[%emt 0:00:42]} 28. Qb2 {[%emt 0:01:09]} Rae7 {[%emt 0:00:34]} 29. Rb7 {[%emt 0:00:43]} g5 {[%emt 0:00:26]} 30. Ng2 {[%emt 0:00:33]} Qg6 {[%emt 0:01:54]} 31. Qc2 {[%emt 0:00:53]} a3 {[%emt 0:00:19]} 32. Kf1 {[%emt 0:01:32]} Kh8 {[%emt 0:00:13]} 33. Rxe7 {[%emt 0:00:11]} Rxe7 {[%emt 0:00:05]} 34. Qa4 {[%emt 0:01:14]} exd3 {[%emt 0:00:20]} 35. exd3 {[%emt 0:00:04]} f4 {[%emt 0:00:16]} 36. Qd1 {[%emt 0:01:32]} Qf5 {[%emt 0:00:37]} 37. Qf3 {[%emt 0:00:11]} g4 {[%emt 0:00:41]} 38. Qd1 {[%emt 0:01:07]} f3 {[%emt 0:00:30]} 39. Nh4 {[%emt 0:00:14]} Qe6 {[%emt 0:00:32]} 40. Qc1 {[%emt 0:00:20]} Kh7 {[%emt 0:00:14]} 41. Qe1 {[%emt 0:00:08]} Qf6 {[%emt 0:00:37]} 42. Qa5 {[%emt 0:00:12]} Qe5 {[%emt 0:00:11]} 43. Re1 {[%emt 0:00:11]} Qd6 {[%emt 0:00:21]} 44. Rxe7+ {[%emt 0:00:02]} Qxe7 {[%emt 0:00:01]} 45. Qe1 {[%emt 0:00:02]} Qxe1+ {[%emt 0:00:22]} 46. Kxe1 {[%emt 0:00:01]} Kg7 {[%emt 0:00:03]} 47. Kd1 {[%emt 0:00:07]} Kf6 {[%emt 0:00:03]} 48. Kc2 {[%emt 0:00:02]} Be7 {[%emt 0:00:16]} 49. Kb3 {[%emt 0:00:01]} Bc5 {[%emt 0:00:11]} 50. Ka4 {[%emt 0:00:04]} Ke6 {[%emt 0:00:34]} 1-0

[Event "Wuerttemberg Rapid Teams 2024"]
[Site "B?blingen, Germany"]
[Date "2024.04.13"]
[Round "1.7"]
[White "Krockenberger, Martin"]
[Black "Sulzbacher, Kurt"]
[Result "1-0"]
[ECO "D36"]
[WhiteElo "2125"]
[BlackElo "1976"]
[Annotator "RC"]
[PlyCount "63"]
[EventDate "2024.04.13"]
[EventType "team-tourn"]
[SourceTitle "playchess.com"]
[Source "ChessBase"]
[SourceQuality "1"]
[TimeControl "900+5"]

1. d4 {[%emt 0:00:02]} d5 {[%emt 0:00:03]} 2. c4 {[%emt 0:00:03]} e6 {[%emt 0:00:02]} 3. Nc3 {[%emt 0:00:02]} Nf6 {[%emt 0:00:02]} 4. cxd5 {[%emt 0:00:03]} exd5 {[%emt 0:00:02]} 5. Bg5 {[%emt 0:00:02]} Be7 {[%emt 0:00:26]} 6. e3 {[%emt 0:00:12]} O-O {[%emt 0:00:09]} 7. Bd3 {[%emt 0:00:04]} c6 {[%emt 0:00:12]} 8. Nge2 {[%emt 0:00:04]} Nbd7 {[%emt 0:01:21]} 9. O-O {[%emt 0:00:15]} Re8 {[%emt 0:00:30]} 10. Qc2 {[%emt 0:00:15]} Nf8 {[%emt 0:00:33]} 11. f3 {[%emt 0:00:05]} c5 {[%emt 0:01:35]} 12. dxc5 {[%emt 0:01:33]} Bxc5 {[%emt 0:00:34]} 13. Nd4 {[%emt 0:03:01]} Be6 {[%emt 0:05:17]} 14. Rad1 {[%emt 0:00:57]} Rc8 {[%emt 0:00:17]} 15. Kh1 {[%emt 0:00:22]} a6 {[%emt 0:01:04]} 16. Qb1 {[%emt 0:01:42]} h6 {[%emt 0:01:54]} 17. Bh4 {[%emt 0:00:07]} Ba7 {[%emt 0:00:27]} 18. Bc2 {[%emt 0:00:16]} Qc7 {[%emt 0:00:28]} 19. Bxf6 {[%emt 0:00:25]} gxf6 {[%emt 0:00:01]} 20. Bb3 {[%emt 0:00:09]} Rcd8 {[%emt 0:00:35]} 21. Qd3 {[%emt 0:00:50]} Qe5 {[%emt 0:00:10]} 22. f4 {[%emt 0:00:10]} Qh5 {[%emt 0:00:01]} 23. f5 {[%emt 0:00:53]} Bb8 {[%emt 0:00:02]} 24. g3 {[%emt 0:00:16]} Bc8 {[%emt 0:00:04]} 25. Nxd5 {[%emt 0:00:41]} Nh7 {[%emt 0:00:02]} 26. Qe2 {[%emt 0:01:36]} Qg5 {[%emt 0:00:20]} 27. e4 {[%emt 0:00:38]} b5 {[%emt 0:00:04]} 28. Nc6 {[%emt 0:00:18]} Bb7 {[%emt 0:00:26]} 29. Nxd8 {[%emt 0:00:15]} Rxd8 {[%emt 0:00:09]} 30. Ne7+ {[%emt 0:00:15]} Kf8 {[%emt 0:00:19]} 31. Rxd8+ {[%emt 0:00:02]} Kxe7 {[%emt 0:00:02]} 32. Rxb8 {[%emt 0:00:50]} 1-0

[Event "Wuerttemberg Rapid Teams 2024"]
[Site "B?blingen, Germany"]
[Date "2024.04.13"]
[Round "1.8"]
[White "Kaufmann, Gunther"]
[Black "Eisele, Steffen"]
[Result "0-1"]
[ECO "C19"]
[WhiteElo "1852"]
[BlackElo "2230"]
[Annotator "RC"]
[PlyCount "84"]
[EventDate "2024.04.13"]
[EventType "team-tourn"]
[SourceTitle "playchess.com"]
[Source "ChessBase"]
[SourceQuality "1"]
[TimeControl "900+5"]

1. e4 {[%emt 0:00:03]} e6 {[%emt 0:00:01]} 2. d4 {[%emt 0:00:02]} d5 {[%emt 0:00:02]} 3. Nc3 {[%emt 0:00:02]} Bb4 {[%emt 0:00:11]} 4. e5 {[%emt 0:00:05]} c5 {[%emt 0:00:07]} 5. a3 {[%emt 0:00:03]} Bxc3+ {[%emt 0:00:08]} 6. bxc3 {[%emt 0:00:03]} Qc7 {[%emt 0:00:15]} 7. Nf3 {[%emt 0:00:24]} b6 {[%emt 0:00:21]} 8. Be2 {[%emt 0:01:41]} Ba6 {[%emt 0:00:14]} 9. O-O {[%emt 0:00:09]} Bxe2 {[%emt 0:00:08]} 10. Qxe2 {[%emt 0:00:03]} Ne7 {[%emt 0:00:38]} 11. Ng5 {[%emt 0:02:08]} h6 {[%emt 0:01:48]} 12. Qh5 {[%emt 0:01:12]} O-O {[%emt 0:00:27]} 13. Nf3 {[%emt 0:00:32]} cxd4 {[%emt 0:00:52]} 14. cxd4 {[%emt 0:00:33]} Qxc2 {[%emt 0:00:07]} 15. Bd2 {[%emt 0:00:23]} Nbc6 {[%emt 0:01:44]} 16. Rfc1 {[%emt 0:01:09]} Qg6 {[%emt 0:00:03]} 17. Qxg6 {[%emt 0:00:45]} fxg6 {[%emt 0:00:02]} 18. Bb4 {[%emt 0:00:13]} Rfc8 {[%emt 0:02:02]} 19. h3 {[%emt 0:01:29]} Nf5 {[%emt 0:00:11]} 20. Bc3 {[%emt 0:00:12]} Kf7 {[%emt 0:00:57]} 21. g4 {[%emt 0:00:02]} Nfe7 {[%emt 0:00:05]} 22. h4 {[%emt 0:01:04]} Rc7 {[%emt 0:00:57]} 23. Bb4 {[%emt 0:00:23]} Rcc8 {[%emt 0:00:57]} 24. Bd6 {[%emt 0:00:08]} Na5 {[%emt 0:00:13]} 25. Nd2 {[%emt 0:00:19]} Nec6 {[%emt 0:00:41]} 26. Bb4 {[%emt 0:01:00]} Nxd4 {[%emt 0:00:26]} 27. Rxc8 {[%emt 0:00:19]} Rxc8 {[%emt 0:00:01]} 28. Bxa5 {[%emt 0:00:18]} bxa5 {[%emt 0:00:04]} 29. Rb1 {[%emt 0:00:18]} Rc2 {[%emt 0:00:45]} 30. Rb7+ {[%emt 0:00:19]} Ke8 {[%emt 0:01:05]} 31. Nf1 {[%emt 0:00:44]} Nf3+ {[%emt 0:00:10]} 32. Kg2 {[%emt 0:00:02]} Nxe5 {[%emt 0:00:04]} 33. Rxg7 {[%emt 0:00:16]} d4 {[%emt 0:00:02]} 34. Rxa7 {[%emt 0:00:35]} d3 {[%emt 0:00:23]} 35. Rxa5 {[%emt 0:00:03]} Nxg4 {[%emt 0:00:11]} 36. Ra4 {[%emt 0:00:42]} h5 {[%emt 0:00:13]} 37. Rd4 {[%emt 0:00:10]} Nxf2 {[%emt 0:01:00]} 38. Kf3 {[%emt 0:00:10]} e5 {[%emt 0:00:10]} 39. Rd5 {[%emt 0:00:04]} e4+ {[%emt 0:00:04]} 40. Ke3 {[%emt 0:00:04]} Re2+ {[%emt 0:00:16]} 41. Kd4 {[%emt 0:00:01]} d2 {[%emt 0:00:07]} 42. Nxd2 {[%emt 0:00:04]} Rxd2+ {[%emt 0:00:01]} 0-1

[Event "Wuerttemberg Rapid Teams 2024"]
[Site "B?blingen, Germany"]
[Date "2024.04.13"]
[Round "1.10"]
[White "Vujic, Branimir"]
[Black "Kaufmann, Thorsten"]
[Result "1-0"]
[ECO "A48"]
[WhiteElo "2218"]
[BlackElo "2057"]
[Annotator "RC"]
[PlyCount "143"]
[EventDate "2024.04.13"]
[EventType "team-tourn"]
[SourceTitle "playchess.com"]
[Source "ChessBase"]
[SourceQuality "1"]
[TimeControl "900+5"]

1. d4 {[%emt 0:00:03]} Nf6 {[%emt 0:00:01]} 2. Bf4 {[%emt 0:00:01]} c5 {[%emt 0:00:04]} 3. e3 {[%emt 0:00:04]} g6 {[%emt 0:00:03]} 4. c3 {[%emt 0:00:03]} cxd4 {[%emt 0:00:09]} 5. exd4 {[%emt 0:00:02]} Bg7 {[%emt 0:00:02]} 6. Nf3 {[%emt 0:00:02]} O-O {[%emt 0:00:04]} 7. Nbd2 {[%emt 0:00:07]} d5 {[%emt 0:00:09]} 8. h3 {[%emt 0:00:04]} Bf5 {[%emt 0:00:13]} 9. Qb3 {[%emt 0:00:04]} Qc8 {[%emt 0:00:59]} 10. Be2 {[%emt 0:00:08]} Nc6 {[%emt 0:00:03]} 11. O-O {[%emt 0:00:07]} Rd8 {[%emt 0:00:08]} 12. Rfe1 {[%emt 0:00:05]} a6 {[%emt 0:00:21]} 13. a4 {[%emt 0:00:28]} h6 {[%emt 0:01:51]} 14. Ne5 {[%emt 0:00:39]} g5 {[%emt 0:00:28]} 15. Bg3 {[%emt 0:00:21]} e6 {[%emt 0:00:34]} 16. a5 {[%emt 0:01:21]} Ne4 {[%emt 0:01:50]} 17. Nxe4 {[%emt 0:00:10]} Bxe4 {[%emt 0:00:08]} 18. Nxc6 {[%emt 0:00:38]} Qxc6 {[%emt 0:00:02]} 19. Qa4 {[%emt 0:00:09]} Rac8 {[%emt 0:00:25]} 20. Qxc6 {[%emt 0:00:51]} Rxc6 {[%emt 0:00:02]} 21. Ra3 {[%emt 0:00:01]} Bf8 {[%emt 0:00:40]} 22. Rb3 {[%emt 0:01:59]} Rd7 {[%emt 0:00:02]} 23. Rc1 {[%emt 0:00:29]} Be7 {[%emt 0:00:06]} 24. f3 {[%emt 0:02:22]} Bg6 {[%emt 0:00:05]} 25. Kf2 {[%emt 0:00:06]} f5 {[%emt 0:00:14]} 26. Be5 {[%emt 0:00:02]} f4 {[%emt 0:00:15]} 27. Ke1 {[%emt 0:00:10]} Bd8 {[%emt 0:00:40]} 28. Ra3 {[%emt 0:00:04]} Bc7 {[%emt 0:00:57]} 29. Bxc7 {[%emt 0:00:10]} Rdxc7 {[%emt 0:00:14]} 30. Rb3 {[%emt 0:00:03]} Kf8 {[%emt 0:00:23]} 31. Kd2 {[%emt 0:00:02]} Ke7 {[%emt 0:00:03]} 32. Rb4 {[%emt 0:00:06]} Kd7 {[%emt 0:00:20]} 33. Bd1 {[%emt 0:00:07]} Kc8 {[%emt 0:00:11]} 34. Ba4 {[%emt 0:00:03]} Rd6 {[%emt 0:00:02]} 35. Re1 {[%emt 0:00:05]} Kd8 {[%emt 0:00:20]} 36. Rb6 {[%emt 0:00:20]} Rxb6 {[%emt 0:00:03]} 37. axb6 {[%emt 0:00:01]} Re7 {[%emt 0:00:02]} 38. b3 {[%emt 0:00:20]} Be8 {[%emt 0:00:05]} 39. Bxe8 {[%emt 0:00:06]} Kxe8 {[%emt 0:00:01]} 40. c4 {[%emt 0:00:01]} Kd7 {[%emt 0:00:06]} 41. Re5 {[%emt 0:00:28]} Kd6 {[%emt 0:00:09]} 42. Kc3 {[%emt 0:00:10]} Rf7 {[%emt 0:00:55]} 43. Kb4 {[%emt 0:00:39]} Rf8 {[%emt 0:00:24]} 44. Ka5 {[%emt 0:00:21]} Rc8 {[%emt 0:00:09]} 45. c5+ {[%emt 0:00:17]} Kd7 {[%emt 0:00:04]} 46. b4 {[%emt 0:00:15]} Rg8 {[%emt 0:00:57]} 47. b5 {[%emt 0:00:31]} axb5 {[%emt 0:00:02]} 48. Kxb5 {[%emt 0:00:01]} Ra8 {[%emt 0:00:14]} 49. h4 {[%emt 0:00:01]} Rg8 {[%emt 0:00:01]} 50. hxg5 {[%emt 0:00:12]} hxg5 {[%emt 0:00:02]} 51. Re1 {[%emt 0:00:05]} Ra8 {[%emt 0:00:16]} 52. Rh1 {[%emt 0:00:05]} Ra2 {[%emt 0:00:04]} 53. Rh7+ {[%emt 0:00:03]} Kc8 {[%emt 0:00:12]} 54. Rc7+ {[%emt 0:00:02]} Kb8 {[%emt 0:00:01]} 55. Rg7 {[%emt 0:00:45]} Rb2+ {[%emt 0:00:08]} 56. Ka5 {[%emt 0:00:05]} Ra2+ {[%emt 0:00:03]} 57. Kb4 {[%emt 0:00:03]} Kc8 {[%emt 0:00:01]} 58. Rxg5 {[%emt 0:00:06]} Rd2 {[%emt 0:00:02]} 59. Kc3 {[%emt 0:00:02]} Re2 {[%emt 0:00:06]} 60. Rg8+ {[%emt 0:00:01]} Kd7 {[%emt 0:00:01]} 61. Rg7+ {[%emt 0:00:01]} Kc8 {[%emt 0:00:02]} 62. Rc7+ {[%emt 0:00:01]} Kb8 {[%emt 0:00:03]} 63. Rf7 {[%emt 0:00:01]} Kc8 {[%emt 0:00:02]} 64. Rxf4 {[%emt 0:00:02]} Rxg2 {[%emt 0:00:03]} 65. Rf8+ {[%emt 0:00:01]} Kd7 {[%emt 0:00:01]} 66. Rf7+ {[%emt 0:00:01]} Kc8 {[%emt 0:00:03]} 67. Rc7+ {[%emt 0:00:01]} Kb8 {[%emt 0:00:02]} 68. Re7 {[%emt 0:00:00]} Kc8 {[%emt 0:00:01]} 69. Rxe6 {[%emt 0:00:01]} Rf2 {[%emt 0:00:03]} 70. Rf6 {[%emt 0:00:03]} Rf1 {[%emt 0:00:06]} 71. Rf8+ {[%emt 0:00:01]} Kd7 {[%emt 0:00:01]} 72. Rf7+ {[%emt 0:00:02]} 1-0